[Event "Titled Tuesday Blitz January 31 Early 2023"]
[White "Gorodetzky, David"]
[Black "Kochetov, Andrey"]
[WhiteFideId "2813416"]
[BlackFideId "24130532"]
[WhiteElo "2485"]
[BlackElo "2165"]
[Result "1-0"]
[Round "01"]
[TimeControl "180+2"]
[Date "2023.01.31"]
[WhiteClock "0:00:56"]
[BlackClock "0:00:01"]

1. d4 {[%clk 0:02:59]}  Nf6 {[%clk 0:02:59]} 2. c4 {[%clk 0:02:58]}  e6 {[%clk 0:03:00]} 3. Nc3 {[%clk 0:02:58]}  c5 {[%clk 0:03:00]} 4. d5 {[%clk 0:02:58]}  exd5 {[%clk 0:03:01]} 5. cxd5 {[%clk 0:02:58]}  d6 {[%clk 0:03:02]} 6. e4 {[%clk 0:02:58]}  g6 {[%clk 0:03:01]} 7. Nf3 {[%clk 0:02:48]}  a6 {[%clk 0:03:01]} 8. h3 {[%clk 0:02:32]}  b5 {[%clk 0:02:49]} 9. Bd3 {[%clk 0:02:31]}  Bg7 {[%clk 0:02:47]} 10. O-O {[%clk 0:02:31]}  O-O {[%clk 0:02:41]} 11. Bf4 {[%clk 0:02:31]}  Qb6 {[%clk 0:02:24]} 12. a4 {[%clk 0:02:30]}  c4 {[%clk 0:02:09]} 13. Bc2 {[%clk 0:02:10]}  b4 {[%clk 0:01:58]} 14. a5 {[%clk 0:02:10]}  Qc7 {[%clk 0:01:52]} 15. Na4 {[%clk 0:02:08]}  Nbd7 {[%clk 0:01:44]} 16. Nd2 {[%clk 0:02:04]}  Rb8 {[%clk 0:01:16]} 17. b3 {[%clk 0:02:00]}  Nh5 {[%clk 0:01:11]} 18. Be3 {[%clk 0:01:57]}  Bxa1 {[%clk 0:00:52]} 19. Qxa1 {[%clk 0:01:58]}  c3 {[%clk 0:00:53]} 20. Nc4 {[%clk 0:01:56]}  Ne5 {[%clk 0:00:51]} 21. Nab6 {[%clk 0:01:51]}  f5 {[%clk 0:00:42]} 22. Nxe5 {[%clk 0:01:42]}  dxe5 {[%clk 0:00:35]} 23. Rd1 {[%clk 0:01:31]}  f4 {[%clk 0:00:22]} 24. d6 {[%clk 0:01:29]}  Qd8 {[%clk 0:00:17]} 25. Nxc8 {[%clk 0:01:28]}  Rxc8 {[%clk 0:00:09]} 26. Bb6 {[%clk 0:01:27]}  Qg5 {[%clk 0:00:09]} 27. d7 {[%clk 0:01:21]}  f3 {[%clk 0:00:08]} 28. g4 {[%clk 0:01:22]}  Qh4 {[%clk 0:00:02]} 29. dxc8=Q {[%clk 0:01:02]}  Qxh3 {[%clk 0:00:03]} 30. Qe6+ {[%clk 0:01:03]}  Kg7 {[%clk 0:00:02]} 31. Qxe5+ {[%clk 0:01:02]}  Kh6 {[%clk 0:00:02]} 32. Qh2 {[%clk 0:01:01]}  Qxg4+ {[%clk 0:00:02]} 33. Kh1 {[%clk 0:01:01]}  Rf4 {[%clk 0:00:02]} 34. Be3 {[%clk 0:00:58]}  g5 {[%clk 0:00:01]} 35. Rd6+ {[%clk 0:00:56]}  Kg7 {[%clk 0:00:01]} 36. Qag1 {[%clk 0:00:56]} 1-0


[Site "https://www.chess.com"]

[Event "Titled Tuesday Blitz January 31 Early 2023"]
[White "Ozen, Bahadir"]
[Black "Jimenez Almeida, Luis David"]
[WhiteFideId "6337058"]
[BlackFideId "22242244"]
[WhiteElo "2369"]
[BlackElo "2242"]
[Result "0-1"]
[Round "01"]
[TimeControl "180+2"]
[Date "2023.01.31"]
[WhiteClock "0:00:39"]
[BlackClock "0:00:43"]

1. g3 {[%clk 0:03:00]}  g6 {[%clk 0:02:58]} 2. Bg2 {[%clk 0:03:00]}  Bg7 {[%clk 0:02:59]} 3. d4 {[%clk 0:03:00]}  f5 {[%clk 0:02:59]} 4. Nf3 {[%clk 0:02:59]}  Nf6 {[%clk 0:02:59]} 5. O-O {[%clk 0:03:00]}  d6 {[%clk 0:02:59]} 6. b3 {[%clk 0:02:59]}  O-O {[%clk 0:02:59]} 7. Bb2 {[%clk 0:03:00]}  a5 {[%clk 0:02:59]} 8. c4 {[%clk 0:02:59]}  Qe8 {[%clk 0:02:59]} 9. Nc3 {[%clk 0:02:49]}  c6 {[%clk 0:02:58]} 10. Qc2 {[%clk 0:02:43]}  e5 {[%clk 0:02:55]} 11. Ba3 {[%clk 0:02:23]}  e4 {[%clk 0:02:48]} 12. Ng5 {[%clk 0:02:23]}  Qe7 {[%clk 0:02:44]} 13. Rad1 {[%clk 0:02:21]}  Na6 {[%clk 0:02:43]} 14. f3 {[%clk 0:02:21]}  Nb4 {[%clk 0:02:41]} 15. Qc1 {[%clk 0:02:18]}  h6 {[%clk 0:02:27]} 16. Nh3 {[%clk 0:02:18]}  d5 {[%clk 0:02:14]} 17. Nf4 {[%clk 0:02:11]}  Qf7 {[%clk 0:02:13]} 18. cxd5 {[%clk 0:02:11]}  cxd5 {[%clk 0:02:12]} 19. fxe4 {[%clk 0:02:09]}  dxe4 {[%clk 0:02:11]} 20. d5 {[%clk 0:01:25]}  g5 {[%clk 0:02:06]} 21. Ne6 {[%clk 0:01:26]}  Bxe6 {[%clk 0:02:06]} 22. dxe6 {[%clk 0:01:27]}  Qxe6 {[%clk 0:02:06]} 23. Na4 {[%clk 0:01:27]}  Rac8 {[%clk 0:02:02]} 24. Qd2 {[%clk 0:01:06]}  Rc2 {[%clk 0:01:48]} 25. Qd6 {[%clk 0:01:06]}  Qxd6 {[%clk 0:01:47]} 26. Rxd6 {[%clk 0:01:07]}  Ng4 {[%clk 0:01:35]} 27. Rc1 {[%clk 0:00:56]}  Rxa2 {[%clk 0:01:27]} 28. Bxb4 {[%clk 0:00:55]}  axb4 {[%clk 0:01:28]} 29. Rd7 {[%clk 0:00:51]}  Rf7 {[%clk 0:01:06]} 30. Rc8+ {[%clk 0:00:47]}  Bf8 {[%clk 0:01:04]} 31. Rxf7 {[%clk 0:00:47]}  Kxf7 {[%clk 0:01:05]} 32. Rc7+ {[%clk 0:00:47]}  Kg6 {[%clk 0:01:05]} 33. Rxb7 {[%clk 0:00:47]}  Ra1+ {[%clk 0:00:55]} 34. Bf1 {[%clk 0:00:47]}  Ne3 {[%clk 0:00:55]} 35. Kf2 {[%clk 0:00:48]}  Nxf1 {[%clk 0:00:52]} 36. Rb6+ {[%clk 0:00:48]}  Kf7 {[%clk 0:00:48]} 37. Rb7+ {[%clk 0:00:48]}  Be7 {[%clk 0:00:48]} 38. Nc5 {[%clk 0:00:45]}  Nxh2 {[%clk 0:00:46]} 39. Nd7 {[%clk 0:00:41]}  Ng4+ {[%clk 0:00:45]} 40. Kg2 {[%clk 0:00:41]}  Ra2 {[%clk 0:00:45]} 41. Kf1 {[%clk 0:00:41]}  h5 {[%clk 0:00:44]} 42. Nc5 {[%clk 0:00:40]}  h4 {[%clk 0:00:43]} 43. gxh4 {[%clk 0:00:41]}  gxh4 {[%clk 0:00:43]} 44. Na4 {[%clk 0:00:39]}  h3 {[%clk 0:00:43]} 0-1


[Site "https://www.chess.com"]

[Event "Titled Tuesday Blitz January 31 Early 2023"]
[White "Turzo, Attila"]
[Black "Ter-Sahakyan, Samvel"]
[WhiteFideId "704954"]
[BlackFideId "13302531"]
[WhiteElo "2279"]
[BlackElo "2617"]
[Result "0-1"]
[Round "01"]
[TimeControl "180+2"]
[Date "2023.01.31"]
[WhiteClock "0:00:33"]
[BlackClock "0:01:08"]

1. d4 {[%clk 0:02:57]}  Nf6 {[%clk 0:02:59]} 2. c4 {[%clk 0:02:56]}  g6 {[%clk 0:02:59]} 3. Nc3 {[%clk 0:02:55]}  Bg7 {[%clk 0:03:00]} 4. e4 {[%clk 0:02:55]}  O-O {[%clk 0:03:00]} 5. Nf3 {[%clk 0:02:54]}  d6 {[%clk 0:03:00]} 6. Be2 {[%clk 0:02:54]}  e5 {[%clk 0:03:00]} 7. Be3 {[%clk 0:02:54]}  Nbd7 {[%clk 0:02:56]} 8. O-O {[%clk 0:02:52]}  c6 {[%clk 0:02:57]} 9. d5 {[%clk 0:02:51]}  c5 {[%clk 0:02:57]} 10. Ne1 {[%clk 0:02:51]}  h6 {[%clk 0:02:54]} 11. g4 {[%clk 0:02:50]}  Nh7 {[%clk 0:02:49]} 12. Kh1 {[%clk 0:02:44]}  Kh8 {[%clk 0:02:45]} 13. Ng2 {[%clk 0:02:44]}  Ndf6 {[%clk 0:02:45]} 14. f3 {[%clk 0:02:38]}  Ng8 {[%clk 0:02:36]} 15. Bd3 {[%clk 0:02:27]}  Ne7 {[%clk 0:02:28]} 16. Qd2 {[%clk 0:02:25]}  f5 {[%clk 0:02:28]} 17. gxf5 {[%clk 0:02:22]}  gxf5 {[%clk 0:02:27]} 18. Bxh6 {[%clk 0:02:22]}  Bxh6 {[%clk 0:02:11]} 19. Qxh6 {[%clk 0:02:23]}  Rf6 {[%clk 0:02:12]} 20. Qh5 {[%clk 0:02:19]}  Qf8 {[%clk 0:02:08]} 21. exf5 {[%clk 0:02:00]}  Bxf5 {[%clk 0:01:59]} 22. Bxf5 {[%clk 0:01:49]}  Nxf5 {[%clk 0:02:00]} 23. Ne4 {[%clk 0:01:48]}  Rh6 {[%clk 0:02:00]} 24. Qg4 {[%clk 0:01:44]}  Qf7 {[%clk 0:01:58]} 25. Ng3 {[%clk 0:01:23]}  Nd4 {[%clk 0:01:41]} 26. Kg1 {[%clk 0:01:05]}  Rg8 {[%clk 0:01:38]} 27. Qe4 {[%clk 0:01:05]}  Ng5 {[%clk 0:01:36]} 28. Qe3 {[%clk 0:00:52]}  Ngxf3+ {[%clk 0:01:31]} 29. Rxf3 {[%clk 0:00:48]}  Nxf3+ {[%clk 0:01:31]} 30. Kf2 {[%clk 0:00:44]}  Rxh2 {[%clk 0:01:24]} 31. Rh1 {[%clk 0:00:39]}  Rxh1 {[%clk 0:01:09]} 32. Nxh1 {[%clk 0:00:37]}  Nh4+ {[%clk 0:01:09]} 33. Ke2 {[%clk 0:00:33]}  Rxg2+ {[%clk 0:01:08]} 0-1


[Site "https://www.chess.com"]

[Event "Titled Tuesday Blitz January 31 Early 2023"]
[White "Bruned, Yvain"]
[Black "Kravtsiv, Martyn"]
[WhiteFideId "2250292"]
[BlackFideId "14113147"]
[WhiteElo "2286"]
[BlackElo "2598"]
[Result "0-1"]
[Round "01"]
[TimeControl "180+2"]
[Date "2023.01.31"]
[WhiteClock "0:00:12"]
[BlackClock "0:00:50"]

1. b3 {[%clk 0:03:00]}  e5 {[%clk 0:02:59]} 2. Bb2 {[%clk 0:03:01]}  Nc6 {[%clk 0:02:59]} 3. e3 {[%clk 0:03:02]}  Nge7 {[%clk 0:02:59]} 4. Nf3 {[%clk 0:03:00]}  d6 {[%clk 0:02:57]} 5. d4 {[%clk 0:03:01]}  e4 {[%clk 0:02:57]} 6. Nfd2 {[%clk 0:03:01]}  Bf5 {[%clk 0:02:53]} 7. c4 {[%clk 0:03:00]}  h5 {[%clk 0:02:44]} 8. Nc3 {[%clk 0:02:56]}  d5 {[%clk 0:02:40]} 9. cxd5 {[%clk 0:02:54]}  Nxd5 {[%clk 0:02:41]} 10. Ncxe4 {[%clk 0:02:54]}  Bb4 {[%clk 0:02:40]} 11. Ng3 {[%clk 0:02:35]}  Bg6 {[%clk 0:02:39]} 12. a3 {[%clk 0:02:32]}  h4 {[%clk 0:02:30]} 13. Ne2 {[%clk 0:02:25]}  O-O {[%clk 0:02:25]} 14. Rc1 {[%clk 0:01:45]}  Qe7 {[%clk 0:01:43]} 15. axb4 {[%clk 0:01:26]}  Ncxb4 {[%clk 0:01:43]} 16. Nc3 {[%clk 0:00:51]}  Nxe3 {[%clk 0:01:42]} 17. fxe3 {[%clk 0:00:40]}  Qxe3+ {[%clk 0:01:43]} 18. Qe2 {[%clk 0:00:40]}  Nd3+ {[%clk 0:01:43]} 19. Kd1 {[%clk 0:00:41]}  Nxb2+ {[%clk 0:01:44]} 20. Ke1 {[%clk 0:00:39]}  Nd3+ {[%clk 0:01:22]} 21. Kd1 {[%clk 0:00:39]}  Nf2+ {[%clk 0:01:22]} 22. Ke1 {[%clk 0:00:39]}  Qxe2+ {[%clk 0:01:22]} 23. Bxe2 {[%clk 0:00:39]}  Nxh1 {[%clk 0:01:23]} 24. Bf3 {[%clk 0:00:38]}  Rad8 {[%clk 0:01:13]} 25. Ne2 {[%clk 0:00:33]}  c6 {[%clk 0:01:10]} 26. Kf1 {[%clk 0:00:32]}  Bd3 {[%clk 0:01:06]} 27. d5 {[%clk 0:00:22]}  Rfe8 {[%clk 0:01:04]} 28. Re1 {[%clk 0:00:21]}  cxd5 {[%clk 0:00:59]} 29. Kg1 {[%clk 0:00:21]}  Re6 {[%clk 0:00:57]} 30. g3 {[%clk 0:00:15]}  Rde8 {[%clk 0:00:54]} 31. Kf1 {[%clk 0:00:14]}  hxg3 {[%clk 0:00:53]} 32. hxg3 {[%clk 0:00:13]}  Nxg3+ {[%clk 0:00:53]} 33. Kf2 {[%clk 0:00:14]}  Rxe2+ {[%clk 0:00:50]} 34. Rxe2 {[%clk 0:00:12]}  Rxe2+ {[%clk 0:00:51]} 35. Bxe2 {[%clk 0:00:12]}  Nxe2 {[%clk 0:00:51]} 36. Ke3 {[%clk 0:00:12]}  Ba6 {[%clk 0:00:50]} 0-1


[Site "https://www.chess.com"]

[Event "Titled Tuesday Blitz January 31 Early 2023"]
[White "Samunenkov, Ihor"]
[Black "Danielyan, Vahe"]
[WhiteFideId "14187086"]
[BlackFideId "13304828"]
[WhiteElo "2501"]
[BlackElo "2346"]
[Result "1-0"]
[Round "01"]
[TimeControl "180+2"]
[Date "2023.01.31"]
[WhiteClock "0:01:20"]
[BlackClock "0:01:13"]

1. d4 {[%clk 0:02:59]}  Nf6 {[%clk 0:02:58]} 2. c4 {[%clk 0:02:59]}  g6 {[%clk 0:02:58]} 3. Nf3 {[%clk 0:02:58]}  Bg7 {[%clk 0:02:57]} 4. g3 {[%clk 0:02:58]}  b6 {[%clk 0:02:56]} 5. Bg2 {[%clk 0:02:57]}  Bb7 {[%clk 0:02:57]} 6. O-O {[%clk 0:02:57]}  O-O {[%clk 0:02:57]} 7. Re1 {[%clk 0:02:47]}  c5 {[%clk 0:02:55]} 8. d5 {[%clk 0:02:39]}  b5 {[%clk 0:02:55]} 9. cxb5 {[%clk 0:02:11]}  Bxd5 {[%clk 0:02:52]} 10. Nc3 {[%clk 0:02:11]}  Bb7 {[%clk 0:02:51]} 11. e4 {[%clk 0:02:11]}  a6 {[%clk 0:02:22]} 12. e5 {[%clk 0:01:41]}  Ne8 {[%clk 0:02:22]} 13. Qb3 {[%clk 0:01:42]}  axb5 {[%clk 0:02:06]} 14. Qxb5 {[%clk 0:01:41]}  Qc7 {[%clk 0:01:30]} 15. Bf4 {[%clk 0:01:27]}  Qc6 {[%clk 0:01:30]} 16. Qb3 {[%clk 0:01:21]}  Qe6 {[%clk 0:01:13]} 17. Qxb7 {[%clk 0:01:20]} 1-0


[Site "https://www.chess.com"]

[Event "Titled Tuesday Blitz January 31 Early 2023"]
[White "Hajiyev, Kanan"]
[Black "Pakleza, Zbigniew"]
[WhiteFideId "13404148"]
[BlackFideId "1119290"]
[WhiteElo "2197"]
[BlackElo "2494"]
[Result "0-1"]
[Round "01"]
[TimeControl "180+2"]
[Date "2023.01.31"]
[WhiteClock "0:00:04"]
[BlackClock "0:00:06"]

1. d4 {[%clk 0:02:58]}  d6 {[%clk 0:03:00]} 2. Nf3 {[%clk 0:02:57]}  Bg4 {[%clk 0:02:59]} 3. g3 {[%clk 0:02:56]}  Bxf3 {[%clk 0:03:00]} 4. exf3 {[%clk 0:02:56]}  e6 {[%clk 0:02:59]} 5. Bg2 {[%clk 0:02:57]}  c6 {[%clk 0:02:59]} 6. O-O {[%clk 0:02:58]}  g6 {[%clk 0:02:57]} 7. Re1 {[%clk 0:02:54]}  Ne7 {[%clk 0:02:53]} 8. c3 {[%clk 0:02:54]}  Bg7 {[%clk 0:02:52]} 9. f4 {[%clk 0:02:51]}  O-O {[%clk 0:02:52]} 10. Nd2 {[%clk 0:02:51]}  Nd7 {[%clk 0:02:49]} 11. Nc4 {[%clk 0:02:50]}  Qc7 {[%clk 0:02:41]} 12. Qe2 {[%clk 0:02:49]}  Rac8 {[%clk 0:02:35]} 13. h4 {[%clk 0:02:48]}  h5 {[%clk 0:02:33]} 14. a4 {[%clk 0:02:43]}  Rfd8 {[%clk 0:02:22]} 15. Bf3 {[%clk 0:02:38]}  c5 {[%clk 0:02:14]} 16. dxc5 {[%clk 0:02:35]}  Nxc5 {[%clk 0:02:15]} 17. Ne3 {[%clk 0:02:12]}  d5 {[%clk 0:02:00]} 18. Nc2 {[%clk 0:02:04]}  Nf5 {[%clk 0:01:52]} 19. Be3 {[%clk 0:01:56]}  a6 {[%clk 0:01:23]} 20. Red1 {[%clk 0:01:52]}  Nxe3 {[%clk 0:01:16]} 21. Qxe3 {[%clk 0:01:52]}  Nb3 {[%clk 0:01:15]} 22. Ra3 {[%clk 0:01:47]}  Na5 {[%clk 0:01:15]} 23. Qe2 {[%clk 0:01:35]}  Nc4 {[%clk 0:01:12]} 24. Ra2 {[%clk 0:01:34]}  Qb6 {[%clk 0:01:10]} 25. Ne3 {[%clk 0:00:57]}  Qb3 {[%clk 0:01:02]} 26. Rda1 {[%clk 0:00:22]}  Na5 {[%clk 0:00:40]} 27. Ra3 {[%clk 0:00:20]}  Qb6 {[%clk 0:00:40]} 28. Kg2 {[%clk 0:00:19]}  d4 {[%clk 0:00:32]} 29. cxd4 {[%clk 0:00:20]}  Nb3 {[%clk 0:00:31]} 30. Nc4 {[%clk 0:00:15]}  Qb4 {[%clk 0:00:32]} 31. Ne5 {[%clk 0:00:09]}  Nxa1 {[%clk 0:00:23]} 32. Rxa1 {[%clk 0:00:08]}  Rc7 {[%clk 0:00:16]} 33. Rd1 {[%clk 0:00:04]}  Rxd4 {[%clk 0:00:15]} 34. Rxd4 {[%clk 0:00:04]}  Qxd4 {[%clk 0:00:16]} 35. a5 {[%clk 0:00:04]}  Qb4 {[%clk 0:00:07]} 36. Nd3 {[%clk 0:00:04]}  Qxa5 {[%clk 0:00:06]} 37. b4 {[%clk 0:00:03]}  Qb6 {[%clk 0:00:06]} 38. Nc5 {[%clk 0:00:04]}  Qd6 {[%clk 0:00:06]} 39. Ne4 {[%clk 0:00:03]}  Qxb4 {[%clk 0:00:05]} 40. Ng5 {[%clk 0:00:03]}  Qe7 {[%clk 0:00:04]} 41. Kh3 {[%clk 0:00:04]}  Bf6 {[%clk 0:00:05]} 42. Ne4 {[%clk 0:00:04]}  Bd4 {[%clk 0:00:05]} 43. Kg2 {[%clk 0:00:05]}  Kg7 {[%clk 0:00:05]} 44. Qd3 {[%clk 0:00:06]}  Bf6 {[%clk 0:00:06]} 45. Ng5 {[%clk 0:00:06]}  Rd7 {[%clk 0:00:06]} 46. Qe3 {[%clk 0:00:05]}  Bxg5 {[%clk 0:00:06]} 47. hxg5 {[%clk 0:00:06]}  Qd6 {[%clk 0:00:07]} 48. Qe4 {[%clk 0:00:07]}  b5 {[%clk 0:00:07]} 49. Qc2 {[%clk 0:00:05]}  Qd4 {[%clk 0:00:07]} 50. Qa2 {[%clk 0:00:06]}  Rd6 {[%clk 0:00:06]} 51. Qa5 {[%clk 0:00:06]}  b4 {[%clk 0:00:06]} 52. Qc7 {[%clk 0:00:07]}  b3 {[%clk 0:00:05]} 53. Qb7 {[%clk 0:00:07]}  b2 {[%clk 0:00:05]} 54. Be4 {[%clk 0:00:07]}  a5 {[%clk 0:00:04]} 55. g4 {[%clk 0:00:07]}  hxg4 {[%clk 0:00:04]} 56. Kg3 {[%clk 0:00:07]}  a4 {[%clk 0:00:04]} 57. Kxg4 {[%clk 0:00:07]}  a3 {[%clk 0:00:04]} 58. Bb1 {[%clk 0:00:06]}  Qd5 {[%clk 0:00:05]} 59. Qb4 {[%clk 0:00:06]}  Qg2+ {[%clk 0:00:05]} 60. Kh4 {[%clk 0:00:05]}  Qh2+ {[%clk 0:00:06]} 61. Kg4 {[%clk 0:00:04]}  Qg2+ {[%clk 0:00:07]} 62. Kh4 {[%clk 0:00:05]}  Qxf2+ {[%clk 0:00:08]} 63. Kg4 {[%clk 0:00:03]}  Qd4 {[%clk 0:00:08]} 64. Qb3 {[%clk 0:00:03]}  Rc6 {[%clk 0:00:07]} 65. Qxa3 {[%clk 0:00:03]}  Rc4 {[%clk 0:00:07]} 66. Ba2 {[%clk 0:00:03]}  Qxf4+ {[%clk 0:00:07]} 67. Kh3 {[%clk 0:00:04]}  Qg4+ {[%clk 0:00:06]} 68. Kh2 {[%clk 0:00:04]}  Rc2+ {[%clk 0:00:06]} 0-1


[Site "https://www.chess.com"]

[Event "Titled Tuesday Blitz January 31 Early 2023"]
[White "Ronka, Erik"]
[Black "Van Foreest, Lucas"]
[WhiteFideId "505080"]
[BlackFideId "1039792"]
[WhiteElo "2276"]
[BlackElo "2556"]
[Result "1-0"]
[Round "01"]
[TimeControl "180+2"]
[Date "2023.01.31"]
[WhiteClock "0:00:04"]
[BlackClock "0:00:02"]

1. e4 {[%clk 0:02:58]}  b5 {[%clk 0:02:59]} 2. Bxb5 {[%clk 0:02:57]}  Bb7 {[%clk 0:02:58]} 3. Nc3 {[%clk 0:02:56]}  f5 {[%clk 0:02:58]} 4. d3 {[%clk 0:02:49]}  Nf6 {[%clk 0:02:57]} 5. Qe2 {[%clk 0:02:36]}  fxe4 {[%clk 0:02:57]} 6. dxe4 {[%clk 0:02:33]}  e6 {[%clk 0:02:57]} 7. Nf3 {[%clk 0:02:18]}  Bb4 {[%clk 0:02:56]} 8. Bd3 {[%clk 0:02:19]}  O-O {[%clk 0:02:55]} 9. O-O {[%clk 0:02:18]}  Nc6 {[%clk 0:02:51]} 10. e5 {[%clk 0:01:37]}  Bxc3 {[%clk 0:02:51]} 11. bxc3 {[%clk 0:01:37]}  Nd5 {[%clk 0:02:51]} 12. Ng5 {[%clk 0:01:25]}  h6 {[%clk 0:02:49]} 13. Qe4 {[%clk 0:00:48]}  Rf5 {[%clk 0:02:41]} 14. Nf3 {[%clk 0:00:48]}  Qf8 {[%clk 0:02:31]} 15. Nh4 {[%clk 0:00:28]}  Nxc3 {[%clk 0:02:16]} 16. Qe1 {[%clk 0:00:19]}  Rh5 {[%clk 0:02:04]} 17. Ng6 {[%clk 0:00:17]}  Qc5 {[%clk 0:01:55]} 18. Be3 {[%clk 0:00:16]}  Qa5 {[%clk 0:01:55]} 19. f4 {[%clk 0:00:16]}  Nd5 {[%clk 0:01:41]} 20. Bd2 {[%clk 0:00:16]}  Qc5+ {[%clk 0:01:40]} 21. Kh1 {[%clk 0:00:17]}  Nce7 {[%clk 0:01:26]} 22. Qg3 {[%clk 0:00:16]}  Nf5 {[%clk 0:01:19]} 23. Qg4 {[%clk 0:00:16]}  Nde3 {[%clk 0:01:19]} 24. Bxe3 {[%clk 0:00:14]}  Nxe3 {[%clk 0:01:17]} 25. Qxh5 {[%clk 0:00:11]}  Bxg2+ {[%clk 0:01:08]} 26. Kg1 {[%clk 0:00:12]}  Bxf1 {[%clk 0:01:09]} 27. Rxf1 {[%clk 0:00:11]}  Nxf1+ {[%clk 0:01:04]} 28. Kxf1 {[%clk 0:00:12]}  Rb8 {[%clk 0:01:03]} 29. Ke2 {[%clk 0:00:11]}  Qg1 {[%clk 0:00:32]} 30. Nh4 {[%clk 0:00:11]}  Qxh2+ {[%clk 0:00:31]} 31. Ke3 {[%clk 0:00:11]}  Qh3+ {[%clk 0:00:29]} 32. Kd2 {[%clk 0:00:11]}  Qh2+ {[%clk 0:00:28]} 33. Kc3 {[%clk 0:00:10]}  Qxf4 {[%clk 0:00:28]} 34. a3 {[%clk 0:00:08]}  c5 {[%clk 0:00:22]} 35. Ng6 {[%clk 0:00:06]}  Qd4+ {[%clk 0:00:22]} 36. Kd2 {[%clk 0:00:07]}  Qf2+ {[%clk 0:00:22]} 37. Be2 {[%clk 0:00:07]}  Qd4+ {[%clk 0:00:20]} 38. Bd3 {[%clk 0:00:07]}  Qf2+ {[%clk 0:00:20]} 39. Be2 {[%clk 0:00:08]}  Qf7 {[%clk 0:00:19]} 40. Qg4 {[%clk 0:00:06]}  d6 {[%clk 0:00:18]} 41. Nf4 {[%clk 0:00:06]}  dxe5 {[%clk 0:00:17]} 42. Nxe6 {[%clk 0:00:06]}  h5 {[%clk 0:00:16]} 43. Qh3 {[%clk 0:00:05]}  Rb6 {[%clk 0:00:15]} 44. Bc4 {[%clk 0:00:05]}  Rd6+ {[%clk 0:00:15]} 45. Kc3 {[%clk 0:00:05]}  Kh8 {[%clk 0:00:15]} 46. Ng5 {[%clk 0:00:04]}  Qe8 {[%clk 0:00:10]} 47. Nf7+ {[%clk 0:00:04]}  Kh7 {[%clk 0:00:10]} 48. Qxh5+ {[%clk 0:00:03]}  Rh6 {[%clk 0:00:11]} 49. Qf5+ {[%clk 0:00:03]}  g6 {[%clk 0:00:10]} 50. Ng5+ {[%clk 0:00:04]}  Kg7 {[%clk 0:00:07]} 51. Ne6+ {[%clk 0:00:04]}  Kh7 {[%clk 0:00:08]} 52. Nf8+ {[%clk 0:00:03]}  Kg7 {[%clk 0:00:07]} 53. Ne6+ {[%clk 0:00:04]}  Kh7 {[%clk 0:00:07]} 54. Qf6 {[%clk 0:00:04]}  Rh2 {[%clk 0:00:02]} 55. Qg7# {[%clk 0:00:04]} 1-0


[Site "https://www.chess.com"]

[Event "Titled Tuesday Blitz January 31 Early 2023"]
[White "Paichadze, Luka"]
[Black "Ramirez Allo, Eduardo"]
[WhiteFideId "13602934"]
[BlackFideId "2224178"]
[WhiteElo "2515"]
[BlackElo "2274"]
[Result "0-1"]
[Round "01"]
[TimeControl "180+2"]
[Date "2023.01.31"]
[WhiteClock "0:00:44"]
[BlackClock "0:00:11"]

1. e4 {[%clk 0:02:56]}  c5 {[%clk 0:02:59]} 2. Nf3 {[%clk 0:02:52]}  d6 {[%clk 0:02:59]} 3. d4 {[%clk 0:02:51]}  cxd4 {[%clk 0:03:00]} 4. Qxd4 {[%clk 0:02:52]}  Nc6 {[%clk 0:02:59]} 5. Bb5 {[%clk 0:02:50]}  Bd7 {[%clk 0:02:59]} 6. Qd3 {[%clk 0:02:49]}  Nf6 {[%clk 0:02:59]} 7. Bg5 {[%clk 0:02:43]}  e6 {[%clk 0:02:58]} 8. Nc3 {[%clk 0:02:42]}  Be7 {[%clk 0:02:55]} 9. O-O-O {[%clk 0:02:41]}  a6 {[%clk 0:02:44]} 10. Bxc6 {[%clk 0:02:40]}  Bxc6 {[%clk 0:02:45]} 11. Nd4 {[%clk 0:02:39]}  Rc8 {[%clk 0:02:44]} 12. f4 {[%clk 0:02:32]}  O-O {[%clk 0:02:43]} 13. Kb1 {[%clk 0:02:31]}  b5 {[%clk 0:02:35]} 14. Nxc6 {[%clk 0:02:14]}  Rxc6 {[%clk 0:02:36]} 15. f5 {[%clk 0:02:13]}  b4 {[%clk 0:02:33]} 16. Ne2 {[%clk 0:02:08]}  e5 {[%clk 0:02:27]} 17. Bxf6 {[%clk 0:02:06]}  Bxf6 {[%clk 0:02:27]} 18. g4 {[%clk 0:02:06]}  h6 {[%clk 0:02:07]} 19. Ng3 {[%clk 0:02:02]}  a5 {[%clk 0:01:59]} 20. Nh5 {[%clk 0:02:01]}  Bg5 {[%clk 0:01:56]} 21. Rhf1 {[%clk 0:01:58]}  a4 {[%clk 0:01:48]} 22. Qb5 {[%clk 0:01:48]}  Qa8 {[%clk 0:01:45]} 23. Qd5 {[%clk 0:01:19]}  Rfc8 {[%clk 0:01:31]} 24. Rf2 {[%clk 0:01:17]}  Qa6 {[%clk 0:01:25]} 25. f6 {[%clk 0:01:14]}  g6 {[%clk 0:01:24]} 26. Ng3 {[%clk 0:01:13]}  b3 {[%clk 0:01:17]} 27. axb3 {[%clk 0:01:09]}  a3 {[%clk 0:01:02]} 28. b4 {[%clk 0:01:09]}  axb2 {[%clk 0:01:01]} 29. Kxb2 {[%clk 0:01:09]}  Ra8 {[%clk 0:00:59]} 30. Qb3 {[%clk 0:01:10]}  Qa7 {[%clk 0:00:53]} 31. Rf3 {[%clk 0:01:06]}  Ra6 {[%clk 0:00:53]} 32. Ne2 {[%clk 0:01:01]}  Ra2+ {[%clk 0:00:52]} 33. Kc3 {[%clk 0:01:01]}  Ra3 {[%clk 0:00:45]} 34. Nc1 {[%clk 0:00:55]}  Bxc1 {[%clk 0:00:41]} 35. Rxc1 {[%clk 0:00:55]}  Rxb3+ {[%clk 0:00:38]} 36. cxb3 {[%clk 0:00:56]}  Rc8+ {[%clk 0:00:38]} 37. Kb2 {[%clk 0:00:54]}  Qd4+ {[%clk 0:00:33]} 38. Rfc3 {[%clk 0:00:54]}  Rxc3 {[%clk 0:00:32]} 39. Rxc3 {[%clk 0:00:55]}  Qxb4 {[%clk 0:00:23]} 40. Rc8+ {[%clk 0:00:56]}  Kh7 {[%clk 0:00:24]} 41. Rc4 {[%clk 0:00:57]}  Qd2+ {[%clk 0:00:23]} 42. Ka3 {[%clk 0:00:57]}  g5 {[%clk 0:00:21]} 43. Ka4 {[%clk 0:00:57]}  Kg6 {[%clk 0:00:20]} 44. b4 {[%clk 0:00:57]}  Qa2+ {[%clk 0:00:20]} 45. Kb5 {[%clk 0:00:57]}  Kxf6 {[%clk 0:00:21]} 46. Rc6 {[%clk 0:00:57]}  Ke6 {[%clk 0:00:21]} 47. Rc8 {[%clk 0:00:52]}  Qe2+ {[%clk 0:00:20]} 48. Kb6 {[%clk 0:00:51]}  Qe3+ {[%clk 0:00:18]} 49. Ka6 {[%clk 0:00:50]}  Qxe4 {[%clk 0:00:18]} 50. b5 {[%clk 0:00:50]}  Qxg4 {[%clk 0:00:17]} 51. b6 {[%clk 0:00:49]}  Qa4+ {[%clk 0:00:17]} 52. Kb7 {[%clk 0:00:50]}  e4 {[%clk 0:00:18]} 53. Kb8 {[%clk 0:00:49]}  e3 {[%clk 0:00:18]} 54. b7 {[%clk 0:00:49]}  e2 {[%clk 0:00:18]} 55. Rc1 {[%clk 0:00:49]}  Qa5 {[%clk 0:00:11]} 56. Kc8 {[%clk 0:00:46]}  e1=Q {[%clk 0:00:08]} 57. Rxe1+ {[%clk 0:00:46]}  Qxe1 {[%clk 0:00:09]} 58. b8=Q {[%clk 0:00:46]}  Qc3+ {[%clk 0:00:09]} 59. Kd8 {[%clk 0:00:43]}  Qh8+ {[%clk 0:00:09]} 60. Kc7 {[%clk 0:00:43]}  Qxb8+ {[%clk 0:00:10]} 61. Kxb8 {[%clk 0:00:44]}  d5 {[%clk 0:00:11]} 0-1


[Site "https://www.chess.com"]